fUST/lending_fUST_20240331
["ID","MTS","AMOUNT","RATE_DAILY","PERIOD"]
[321049595,1711823454738,-2136.15,0.0004064,4]
[321049596,1711823454747,-500.0,0.0004064,4]
[321049597,1711823454757,-500.0,0.0004064,4]
[321049598,1711823454767,-607.15426492,0.0004064,4]
[321049599,1711823454776,-500.0,0.0004064,4]
[321049600,1711823454786,-4232.65,0.0004064,4]
[321049601,1711823454795,-500.0,0.0004064,4]
[321049602,1711823454804,-500.0,0.0004064,4]
[321049603,1711823454814,-500.0,0.0004064,4]
[321049604,1711823454824,-1109.77,0.0004064,4]
[321049605,1711823454836,-7923.61,0.0004064,4]
[321049606,1711823454846,-721.65,0.0004064,4]
[321049607,1711823454855,-500.0,0.0004064,4]
[321049608,1711823454865,-2364.08,0.0004064,4]
[321049609,1711823454876,-500.0,0.0004064,4]
[321049610,1711823454885,-782.22,0.0004064,4]
[321049611,1711823454894,-500.0,0.0004064,4]
[321049612,1711823454903,-2444.09,0.0004064,4]
[321049613,1711823454913,-500.0,0.0004064,4]
[321049614,1711823454922,-500.0,0.0004064,4]
[321049615,1711823454932,-879.99,0.0004064,4]
[321049616,1711823454941,-500.0,0.0004064,4]
[321049617,1711823454950,-500.0,0.0004064,4]
[321049618,1711823454960,-500.0,0.0004064,4]
[321049619,1711823454970,-4026.92,0.0004064,4]
[321049620,1711823454980,-502.31846526,0.0004064,4]
[321049621,1711823454989,-29387.0,0.0004064,4]
[321049622,1711823454998,-721.06,0.0004064,4]
[321049623,1711823455008,-500.0,0.0004064,4]
[321049624,1711823455018,-7298.15,0.0004064,4]
[321049625,1711823455027,-500.0,0.0004064,4]
[321049626,1711823455037,-500.0,0.0004064,4]
[321049627,1711823455046,-625.85982492,0.0004064,4]
[321049628,1711823455055,-500.0,0.0004064,4]
[321049629,1711823455065,-500.0,0.0004064,4]
[321049630,1711823455074,-500.0,0.0004064,4]
[321049631,1711823455084,-1136.14,0.0004064,4]
[321049632,1711823455095,-1325.62,0.0004064,4]
[321049633,1711823455106,-352.92606722,0.0004064,4]
[321049634,1711823455116,-282.01810039,0.0004064,4]
[321049635,1711823455125,-520.92909784,0.0004064,4]
[321049636,1711823455135,-500.0,0.0004064,4]
[321049637,1711823455145,-500.0,0.0004064,4]
[321049638,1711823455154,-500.0,0.0004064,4]
[321049639,1711823455163,-140.24728801,0.0004064,4]
[321049646,1711824340155,-275.51785784,0.00038508,4]
[321049647,1711824340176,-179.057674,0.00038509,2]
[321049648,1711824340196,-250.38328896,0.00038539,2]
[321049649,1711824340216,-402.90582982,0.00039441,4]
[321049708,1711824632001,-3935.84484408,0.00039441,4]
[321049710,1711824632011,-2061.19840511,0.00039442,4]
[321049712,1711824632021,-159.3810894,0.00039442,9]
[321049714,1711824632030,-174.00982984,0.00039443,2]
[321049716,1711824632040,-280.62227312,0.0003954,4]
[321049718,1711824632051,-552.58378937,0.00039541,4]
[321049720,1711824632060,-500.0,0.00039541,4]
[321049722,1711824632069,-500.0,0.00039541,4]
[321049724,1711824632078,-500.0,0.00039541,4]
[321049727,1711824632088,-500.0,0.00039541,4]
[321049729,1711824632097,-500.0,0.00039541,4]
[321049732,1711824632106,-650.16,0.00039541,4]
[321049734,1711824632116,-500.0,0.00039541,4]
[321049736,1711824632125,-151.0,0.00039541,4]
[321049738,1711824632135,-1115.24,0.00039541,4]
[321049740,1711824632145,-1051.27806277,0.00039542,4]
[321049742,1711824632155,-707.74931773,0.00039542,2]
[321049744,1711824632164,-860.8390276,0.00039542,4]
[321049747,1711824632174,-522.57734235,0.00039542,4]
[321049750,1711824632183,-500.0,0.00039542,4]
[321049753,1711824632192,-508.69831733,0.00039542,4]
[321049756,1711824632202,-500.0,0.00039542,4]
[321049759,1711824632212,-500.0,0.00039542,4]
[321049762,1711824632221,-500.0,0.00039542,4]
[321049765,1711824632231,-500.0,0.00039542,4]
[321049768,1711824632240,-500.0,0.00039542,4]
[321049771,1711824632249,-500.0,0.00039542,4]
[321049774,1711824632259,-500.0,0.00039542,4]
[321049776,1711824632268,-500.0,0.00039542,4]
[321049778,1711824632277,-500.0,0.00039542,4]
[321049780,1711824632286,-500.0,0.00039542,4]
[321049782,1711824632295,-878.57,0.00039542,4]
[321049784,1711824632304,-500.0,0.00039542,4]
[321049786,1711824632314,-693.57,0.00039542,4]
[321049787,1711824632323,-500.0,0.00039542,4]
[321049789,1711824632332,-1691.12,0.00039542,4]
[321049791,1711824632341,-1966.62,0.00039542,4]
[321049793,1711824632350,-619.25,0.00039542,4]
[321049795,1711824632359,-1871.56,0.00039542,4]
[321049797,1711824632368,-500.0,0.00039542,4]
[321049799,1711824632378,-696.66,0.00039542,4]
[321049801,1711824632387,-1392.74,0.00039542,4]
[321049803,1711824632396,-6272.85,0.00039542,4]
[321049804,1711824632406,-500.0,0.00039542,4]
[321049805,1711824632416,-500.0,0.00039542,4]
[321049806,1711824632426,-500.0,0.00039542,4]
[321049807,1711824632435,-3187.98,0.00039542,4]
[321049808,1711824632445,-1411.39,0.00039542,4]
[321049809,1711824632456,-500.0,0.00039542,4]
[321049810,1711824632467,-1934.9,0.00039542,4]
[321049812,1711824632477,-23264.71,0.00039542,4]
[321049813,1711824632486,-692.67,0.00039542,4]
[321049814,1711824632496,-5777.71,0.00039542,4]
[321049815,1711824632507,-1252.52,0.00039542,4]
[321049816,1711824632517,-406.93883411,0.00039542,15]
[321049817,1711824632527,-1278.58,0.00039542,4]
[321049818,1711824632538,-500.0,0.00039542,4]
[321049820,1711824632547,-452.91250583,0.00039542,4]
[321049831,1711824638037,-274.86369871,0.00037341,2]
[321049832,1711824638048,-684.30195515,0.00037341,2]
[321049833,1711824638058,-500.0,0.00039541,4]
[321049834,1711824638067,-596.53749417,0.00039542,4]
[321049835,1711824638076,-5561.7,0.00039542,4]
[321049836,1711824638085,-500.0,0.00039542,4]
[321049837,1711824638094,-500.0,0.00039542,4]
[321049838,1711824638103,-500.0,0.00039542,4]
[321049839,1711824638113,-500.0,0.00039542,4]
[321049840,1711824638123,-500.0,0.00039542,4]
[321049841,1711824638132,-1646.16,0.00039542,4]
[321049842,1711824638142,-500.0,0.00039542,4]
[321049843,1711824638153,-500.0,0.00039542,4]
[321049844,1711824638163,-1758.62,0.00039542,4]
[321049845,1711824638172,-500.0,0.00039542,4]
[321049846,1711824638181,-500.0,0.00039542,4]
[321049847,1711824638191,-7402.42,0.00039542,4]
[321049848,1711824638200,-2766.52,0.00039542,4]
[321049849,1711824638209,-500.0,0.00039542,4]
[321049850,1711824638218,-3350.85,0.00039542,4]
[321049851,1711824638227,-500.0,0.00039542,4]
[321049852,1711824638235,-1915.5,0.00039542,4]
[321049853,1711824638246,-170.81978374,0.00039543,4]
[321049854,1711824638255,-500.0,0.00039543,4]
[321049855,1711824638264,-500.0,0.00039543,4]
[321049856,1711824638273,-500.0,0.00039543,4]
[321049857,1711824638282,-261.57533887,0.00039543,4]
[321049858,1711824638291,-500.0,0.00039543,4]
[321049859,1711824638300,-500.0,0.00039543,4]
[321049860,1711824638309,-168.18942141,0.00039543,4]
[321049861,1711824638397,-331.81057859,0.00039543,4]
[321049862,1711824638407,-549.7,0.00039543,4]
[321049863,1711824638416,-500.0,0.00039543,4]
[321049864,1711824638425,-500.0,0.00039543,4]
[321049865,1711824638435,-500.0,0.00039543,4]
[321049866,1711824638443,-500.0,0.00039543,4]
[321049867,1711824638456,-500.0,0.00039543,4]
[321049868,1711824638466,-500.0,0.00039543,4]
[321049869,1711824638475,-500.0,0.00039543,4]
[321049870,1711824638484,-500.0,0.00039543,4]
[321049871,1711824638495,-560.52,0.00039543,4]
[321049872,1711824638504,-500.0,0.00039543,4]
[321049873,1711824638513,-500.0,0.00039543,4]
[321049874,1711824638522,-264.61270175,0.00039543,4]
[321049963,1711824643113,-232.0,0.00039541,4]
[321049964,1711824643127,-238.38729825,0.00039543,4]
[321049965,1711824643143,-500.0,0.00039543,4]
[321049966,1711824643157,-500.0,0.00039543,4]
[321049967,1711824643169,-500.0,0.00039543,4]
[321049968,1711824643181,-53.84650169,0.00039543,4]
[321049973,1711824731269,-155.0,0.00039443,2]
[321049983,1711824830427,235.17931918,0.00021,2]
[321049985,1711824878601,2540.92598335,0.0002,2]
[321049999,1711825443270,1917.30203085,0.0002,2]
[321050000,1711825444406,155.15197842,0.0002,2]
[321050001,1711825447676,383.85612424,0.0002,2]
[321050002,1711825450009,155.17913138,0.0002,2]
[321050003,1711825451253,155.56806139,0.0002,2]
[321050004,1711825455645,155.3609674,0.0002,2]
[321050005,1711825460304,1313.7436245,0.0002,2]
[321050006,1711825463583,383.85612424,0.0002,2]
[321050007,1711825485587,383.85612424,0.0002,2]
[321050008,1711825503580,395.24940222,0.0002,2]
[321050010,1711825595132,-226.04397692,0.00037443,2]
[321050011,1711825627104,-303.76462084,0.00037443,2]
[321050012,1711825631089,-243.0962678,0.00037443,2]
[321050013,1711825631110,-7457.02181565,0.00038895,4]
[321050014,1711825631130,-739.26595515,0.00038896,2]
[321050015,1711825631152,-739.26595515,0.00038897,2]
[321050016,1711825631172,-739.26595515,0.00038898,2]
[321050017,1711825631193,-739.26595515,0.00038899,2]
[321050018,1711825631218,-159.38108939,0.000389,9]
[321050019,1711825631238,-739.26595515,0.000389,2]
[321050020,1711825631257,-400.0,0.00038992,3]
[321050021,1711825631277,-23840.50107404,0.00038994,4]
[321050022,1711825631297,-4631.78380535,0.00038996,4]
[321050023,1711825631316,-416.71912349,0.00038996,4]
[321050024,1711825631335,-154.98450155,0.00038996,4]
[321050025,1711825631354,-1260.11457174,0.00038996,4]
[321050026,1711825631373,-720.02985171,0.00038996,4]
[321050027,1711825631393,-322.11752792,0.00038996,4]
[321050028,1711825631412,-793.55859104,0.00038996,2]
[321050029,1711825631431,-500.0,0.00038996,15]
[321050030,1711825631453,-500.0,0.00038996,15]
[321050031,1711825631472,-500.0,0.00038996,15]
[321050032,1711825631492,-500.0,0.00038996,15]
[321050033,1711825631511,-463.43528092,0.00038996,15]
[321050034,1711825631531,-500.0,0.00038996,15]
[321050035,1711825631551,-500.0,0.00038996,15]
[321050036,1711825631570,-316.33262835,0.00038996,15]
[321050037,1711825631589,-500.0,0.00038996,15]
[321050038,1711825631609,-500.0,0.00038996,15]
[321050039,1711825631629,-412.32007125,0.00038996,15]
[321050040,1711825631651,-500.0,0.00038996,15]
[321050041,1711825631670,-500.0,0.00038996,15]
[321050042,1711825631689,-500.0,0.00038996,15]
[321050043,1711825631710,-500.0,0.00038996,15]
[321050044,1711825631731,-500.0,0.00038996,15]
[321050045,1711825631763,-500.0,0.00038996,15]
[321050046,1711825631784,-500.0,0.00038996,15]
[321050047,1711825631805,-338.53045388,0.00038996,15]
[321050048,1711825631826,-500.0,0.00038996,15]
[321050049,1711825631847,-500.0,0.00038996,15]
[321050050,1711825631867,-500.0,0.00038996,15]
[321050051,1711825631888,-500.0,0.00038996,15]
[321050052,1711825631909,-500.0,0.00038996,15]
[321050053,1711825631930,-500.0,0.00038996,15]
[321050054,1711825631951,-500.0,0.00038996,15]
[321050055,1711825631972,-500.0,0.00038996,15]
[321050056,1711825631992,-500.0,0.00038996,15]
[321050057,1711825632014,-500.0,0.00038996,15]
[321050058,1711825632035,-500.0,0.00038996,15]
[321050059,1711825632057,-500.0,0.00038996,15]
[321050060,1711825632078,-500.0,0.00038996,15]
[321050061,1711825632098,-500.0,0.00038996,15]
[321050062,1711825632119,-500.0,0.00038996,15]
[321050063,1711825632139,-500.0,0.00038996,15]
[321050064,1711825632242,-500.0,0.00038996,15]
[321050065,1711825632263,-500.0,0.00038996,15]
[321050066,1711825632284,-500.0,0.00038996,15]
[321050067,1711825632304,-500.0,0.00038996,15]
[321050068,1711825632326,-500.0,0.00038996,15]
[321050069,1711825632347,-500.0,0.00038996,15]
[321050070,1711825632368,-500.0,0.00038996,15]
[321050071,1711825632389,-500.0,0.00038996,15]
[321050072,1711825632410,-500.0,0.00038996,15]
[321050073,1711825632430,-500.0,0.00038996,15]
[321050074,1711825632451,-500.0,0.00038996,15]
[321050075,1711825632476,-500.0,0.00038996,15]
[321050076,1711825632495,-500.0,0.00038996,15]
[321050077,1711825632515,-500.0,0.00038996,15]
[321050078,1711825632535,-500.0,0.00038996,15]
[321050079,1711825632560,-500.0,0.00038996,15]
[321050080,1711825632579,-500.0,0.00038996,15]
[321050081,1711825632599,-500.0,0.00038996,15]
[321050082,1711825632619,-500.0,0.00038996,15]
[321050083,1711825632640,-500.0,0.00038996,15]
[321050084,1711825632660,-500.0,0.00038996,15]
[321050085,1711825632681,-500.0,0.00038996,15]
[321050086,1711825632700,-500.0,0.00038996,15]
[321050087,1711825632720,-500.0,0.00038996,15]
[321050088,1711825632744,-500.0,0.00038996,15]
[321050089,1711825632764,-500.0,0.00038996,15]
[321050090,1711825632784,-500.0,0.00038996,15]
[321050091,1711825632806,-500.0,0.00038996,15]
[321050092,1711825632826,-500.0,0.00038996,15]
[321050093,1711825632847,-500.0,0.00038996,15]
[321050094,1711825632866,-500.0,0.00038996,15]
[321050095,1711825632887,-650.0,0.00038996,15]
[321050096,1711825632907,-500.0,0.00038996,15]
[321050097,1711825632927,-500.0,0.00038997,4]
[321050098,1711825632946,-1433.45,0.00038997,4]
[321050099,1711825632967,-500.0,0.00038997,4]
[321050100,1711825632986,-500.0,0.00038997,4]
[321050101,1711825633004,-500.0,0.00038997,4]
[321050102,1711825633022,-1452.5,0.00038997,4]
[321050103,1711825633041,-500.0,0.00038997,4]
[321050104,1711825633061,-500.0,0.00038997,4]
[321050105,1711825633086,-500.0,0.00038997,4]
[321050106,1711825633105,-500.0,0.00038997,4]
[321050107,1711825633124,-500.0,0.00038997,4]
[321050108,1711825633143,-1225.3,0.00038997,4]
[321050109,1711825633163,-500.0,0.00038997,4]
[321050110,1711825633181,-715.15,0.00038997,4]
[321050111,1711825633200,-623.07,0.00038997,4]
[321050112,1711825633219,-500.0,0.00038997,4]
[321050113,1711825633238,-500.0,0.00038997,4]
[321050114,1711825633257,-500.0,0.00038997,4]
[321050115,1711825633277,-1285.74,0.00038997,4]
[321050116,1711825633295,-500.0,0.00038997,4]
[321050117,1711825633314,-151.0,0.00038997,4]
[321050118,1711825633334,-154.98450155,0.00038997,4]
[321050119,1711825633359,-490.51279071,0.00038997,4]
[321050120,1711825633377,-500.0,0.00038997,4]
[321050121,1711825633396,-2997.69980791,0.00038997,4]
[321050122,1711825637130,-4096.28019209,0.00038997,4]
[321050123,1711825637151,-2651.25,0.00038997,4]
[321050124,1711825637172,-1577.57,0.00038997,4]
[321050125,1711825637192,-500.0,0.00038997,4]
[321050126,1711825637211,-500.0,0.00038997,4]
[321050127,1711825637231,-1068.77,0.00038997,4]
[321050128,1711825637256,-500.0,0.00038997,4]
[321050129,1711825637276,-500.0,0.00038997,4]
[321050130,1711825637295,-500.0,0.00038997,4]
[321050131,1711825637314,-841.96,0.00038997,4]
[321050132,1711825637334,-1884.68,0.00038997,4]
[321050133,1711825637352,-500.0,0.00038997,4]
[321050134,1711825637371,-664.67,0.00038997,4]
[321050135,1711825637392,-500.0,0.00038997,4]
[321050136,1711825637412,-39992.51283048,0.00038998,2]
[321050137,1711825637431,-25853.27949422,0.00039,7]
[321050138,1711825637450,-500.0,0.00039271,4]
[321050139,1711825637469,-500.0,0.00039271,4]
[321050140,1711825637489,-500.0,0.00039271,4]
[321050141,1711825637507,-500.0,0.00039271,4]
[321050142,1711825637527,-1452.5,0.00039271,4]
[321050143,1711825637547,-500.0,0.00039271,4]
[321050144,1711825637566,-500.0,0.00039271,4]
[321050145,1711825637585,-500.0,0.00039271,4]
[321050146,1711825637605,-1225.3,0.00039271,4]
[321050147,1711825637624,-500.0,0.00039271,4]
[321050148,1711825637644,-715.15,0.00039271,4]
[321050149,1711825637666,-623.07,0.00039271,4]
[321050150,1711825637685,-500.0,0.00039271,4]
[321050151,1711825637705,-500.0,0.00039271,4]
[321050152,1711825637726,-500.0,0.00039271,4]
[321050153,1711825637750,-1285.74,0.00039271,4]
[321050154,1711825637770,-500.0,0.00039271,4]
[321050155,1711825637791,-254.75716014,0.00039271,4]
[321050156,1711825637812,-500.0,0.00039271,4]
[321050157,1711825637833,-7093.98,0.00039271,4]
[321050158,1711825637853,-2651.25,0.00039271,4]
[321050159,1711825637873,-1577.57,0.00039271,4]
[321050160,1711825637893,-500.0,0.00039271,4]
[321050161,1711825637914,-615.44442593,0.00039271,4]
[321050162,1711825637934,-1068.77,0.00039271,4]
[321050163,1711825637955,-500.0,0.00039271,4]
[321050164,1711825637985,-500.0,0.00039271,4]
[321050165,1711825638009,-505.86810054,0.00039271,4]
[321050166,1711825638030,-841.96,0.00039271,4]
[321050167,1711825638052,-1884.68,0.00039271,4]
[321050168,1711825638072,-500.0,0.00039271,4]
[321050169,1711825638095,-664.67,0.00039271,4]
[321050170,1711825638238,-500.0,0.00039271,4]
[321050171,1711825638261,-155.0,0.00039441,2]
[321050172,1711825638286,-190864.45004917,0.0003954,3]
[321050173,1711825638309,-22295.34,0.0003954,4]
[321050174,1711825638330,-5536.97,0.0003954,4]
[321050175,1711825638352,-5329.96,0.0003954,4]
[321050176,1711825638377,-1685.35,0.0003954,4]
[321050177,1711825638398,-617.94170449,0.00039541,4]
[321050178,1711825638426,-500.0,0.00039541,4]
[321050179,1711825638446,-500.0,0.00039541,4]
[321050180,1711825638467,-500.0,0.00039541,4]
[321050181,1711825638487,-500.0,0.00039541,4]
[321050182,1711825638508,-500.0,0.00039541,4]
[321050183,1711825638527,-500.0,0.00039541,4]
[321050184,1711825638546,-537.16,0.00039541,4]
[321050185,1711825638566,-500.0,0.00039541,4]
[321050186,1711825638586,-500.0,0.00039541,4]
[321050187,1711825638605,-500.0,0.00039541,4]
[321050188,1711825638624,-500.0,0.00039541,4]
[321050189,1711825638644,-500.0,0.00039541,4]
[321050190,1711825638666,-1997.79,0.00039541,4]
[321050191,1711825638685,-500.0,0.00039541,4]
[321050192,1711825638705,-500.06310495,0.00039541,4]
[321050193,1711825638725,-178.05138906,0.00039541,4]
[321050194,1711825638751,-500.0,0.00039541,4]
[321050195,1711825638771,-500.0,0.00039541,4]
[321050196,1711825638790,-500.0,0.00039541,4]
[321050197,1711825638809,-504.3612119,0.00039541,4]
[321050198,1711825638828,-500.0,0.00039541,4]
[321050199,1711825638848,-1522.92,0.00039541,2]
[321050200,1711825638868,-500.0,0.00039541,4]
[321050201,1711825638887,-500.0,0.00039541,4]
[321050202,1711825638908,-593.45,0.00039541,4]
[321050203,1711825638927,-500.0,0.00039541,4]
[321050204,1711825638946,-500.0,0.00039541,4]
[321050205,1711825638965,-296.65326765,0.00039541,4]
[321050206,1711825638984,-571.31,0.00039541,4]
[321050207,1711825639005,-507.27552447,0.00039541,4]
[321050208,1711825639023,-500.0,0.00039541,4]
[321050209,1711825639043,-1854.28,0.00039541,4]
[321050210,1711825639062,-3055.15,0.00039541,4]
[321050211,1711825639080,-500.0,0.00039541,4]
[321050212,1711825639099,-570.84,0.00039541,4]
[321050213,1711825639118,-500.0,0.00039541,4]
[321050214,1711825639137,-500.0,0.00039541,4]
[321050215,1711825639156,-899.45,0.00039541,4]
[321050216,1711825639176,-255.13630976,0.00039541,4]
[321050217,1711825639195,-500.0,0.00039541,4]
[321050218,1711825639214,-507.87575038,0.00039541,4]
[321050219,1711825639233,-500.0,0.00039541,4]
[321050220,1711825639254,-1005.72,0.00039541,4]
[321050221,1711825639272,-500.0,0.00039541,4]
[321050222,1711825639292,-500.0,0.00039541,4]
[321050223,1711825639311,-500.0,0.00039541,4]
[321050224,1711825639330,-500.0,0.00039541,4]
[321050225,1711825639351,-500.0,0.00039541,4]
[321050226,1711825639370,-500.0,0.00039541,4]
[321050227,1711825639390,-500.0,0.00039541,4]
[321050228,1711825639411,-500.0,0.00039541,4]
[321050229,1711825639431,-500.0,0.00039541,4]
[321050230,1711825639450,-529.94448644,0.00039541,4]
[321050231,1711825639470,-500.0,0.00039541,4]
[321050232,1711825639489,-500.0,0.00039541,30]
[321050233,1711825639509,-500.0,0.00039541,4]
[321050234,1711825639529,-500.0,0.00039541,4]
[321050235,1711825639548,-500.0,0.00039541,4]
[321050236,1711825639568,-500.0,0.00039541,4]
[321050237,1711825639587,-500.0,0.00039541,4]
[321050238,1711825639608,-500.0,0.00039541,4]
[321050239,1711825639627,-500.0,0.00039541,4]
[321050240,1711825639647,-506.89176409,0.00039541,4]
[321050241,1711825639740,-1835.69,0.00039541,4]
[321050242,1711825639760,-500.0,0.00039541,4]
[321050243,1711825639780,-500.0,0.00039541,4]
[321050244,1711825639800,-500.0,0.00039541,4]
[321050245,1711825639822,-500.0,0.00039541,4]
[321050246,1711825639842,-500.0,0.00039541,4]
[321050247,1711825639862,-500.0,0.00039541,4]
[321050248,1711825639880,-500.0,0.00039541,4]
[321050249,1711825639900,-500.0,0.00039541,4]
[321050250,1711825639919,-500.0,0.00039541,4]
[321050251,1711825639938,-500.0,0.00039541,4]
[321050252,1711825639956,-500.0,0.00039541,4]
[321050253,1711825639976,-500.0,0.00039541,4]
[321050254,1711825639996,-500.0,0.00039541,4]
[321050255,1711825640015,-500.0,0.00039541,4]
[321050256,1711825640039,-500.0,0.00039541,4]
[321050257,1711825640058,-1793.58,0.00039541,4]
[321050258,1711825640077,-500.0,0.00039541,4]
[321050259,1711825640097,-500.0,0.00039541,4]
[321050260,1711825640116,-6011.48,0.00039541,4]
[321050261,1711825640136,-667.63,0.00039541,4]
[321050262,1711825640158,-31853.52,0.00039541,4]
[321050263,1711825640178,-500.0,0.00039541,4]
[321050264,1711825640199,-1020.24,0.00039541,7]
[321050265,1711825640220,-500.0,0.00039541,4]
[321050266,1711825640242,-500.0,0.00039541,4]
[321050267,1711825640263,-500.0,0.00039541,4]
[321050268,1711825640284,-1363.67,0.00039541,4]
[321050269,1711825640305,-593.92,0.00039541,4]
[321050270,1711825640334,-500.0,0.00039541,4]
[321050271,1711825640354,-894.84,0.00039541,4]
[321050272,1711825640378,-500.0,0.00039541,4]
[321050273,1711825640399,-885.27,0.00039541,4]
[321050274,1711825640420,-158.15263428,0.00039541,4]
[321050275,1711825640439,-501.01153571,0.00039541,4]
[321050276,1711825640456,-500.0,0.00039541,4]
[321050277,1711825640474,-500.0,0.00039541,4]
[321050278,1711825640494,-604.91038196,0.00039541,4]
[321050279,1711825640514,-500.0,0.00039541,4]
[321050280,1711825640535,-500.0,0.00039541,4]
[321050281,1711825640554,-500.0,0.00039541,4]
[321050282,1711825640576,-500.0,0.00039541,4]
[321050283,1711825640596,-500.0,0.00039541,4]
[321050284,1711825640616,-500.0,0.00039542,4]
[321050285,1711825640636,-500.0,0.00039542,4]
[321050286,1711825640657,-500.0,0.00039542,4]
[321050287,1711825640678,-500.0,0.00039542,4]
[321050288,1711825640699,-500.0,0.00039542,4]
[321050289,1711825640719,-500.0,0.00039542,4]
[321050290,1711825640740,-627.67,0.00039542,4]
[321050291,1711825640763,-500.0,0.00039542,4]
[321050292,1711825640782,-500.0,0.00039542,4]
[321050293,1711825640805,-500.0,0.00039545,4]
[321050294,1711825640827,-500.0,0.00039545,4]
[321050295,1711825640849,-500.0,0.00039545,4]
[321050296,1711825640868,-193.65747266,0.00039545,4]
[321050297,1711825640890,-1452.5,0.00039545,4]
[321050298,1711825640912,-500.0,0.00039545,4]
[321050299,1711825640932,-333.09584446,0.00039545,4]
[321050300,1711825640954,-500.0,0.00039545,4]
[321050301,1711825640974,-1225.3,0.00039545,4]
[321050302,1711825640996,-500.0,0.00039545,4]
[321050303,1711825641017,-715.15,0.00039545,4]
[321050304,1711825641037,-623.07,0.00039545,4]
[321050305,1711825641058,-500.0,0.00039545,4]
[321050306,1711825641078,-500.0,0.00039545,4]
[321050307,1711825641099,-500.0,0.00039545,4]
[321050308,1711825641119,-1285.74,0.00039545,4]
[321050309,1711825641208,-500.0,0.00039545,4]
[321050310,1711825641231,-500.0,0.00039545,4]
[321050311,1711825641254,-7093.98,0.00039545,4]
[321050312,1711825641275,-2264.65055686,0.00039545,4]
[321050313,1711825751094,-300.0,0.00038746,3]
[321050314,1711825751114,-23152.0624805,0.00038747,2]
[321050315,1711825751134,-156.92445236,0.00038996,15]
[321050316,1711825751155,-500.0,0.00038996,15]
[321050317,1711825751175,-450.59189345,0.00038996,15]
[321050427,1711825837529,506.36402803,0.00037441,2]
[321050455,1711825838224,-275.61195675,0.00037441,2]
[321050457,1711825838234,-979.71,0.00038995,4]
[321050459,1711825838243,-49.40810655,0.00038996,15]
[321050462,1711825838252,-500.0,0.00038996,15]
[321050464,1711825838261,-500.0,0.00038996,15]
[321050465,1711825838270,-348.85304538,0.00038996,15]
[321050467,1711825838280,-500.0,0.00038996,15]
[321050470,1711825838291,-500.0,0.00038996,15]
[321050471,1711825838301,-500.0,0.00038996,15]
[321050473,1711825838311,-500.0,0.00038996,4]
[321050474,1711825838320,-1270.93,0.00038997,4]
[321050475,1711825838328,-500.0,0.00038997,4]
[321050476,1711825838337,-1718.85,0.00038997,4]
[321050477,1711825838347,-500.0,0.00038997,4]
[321050478,1711825838356,-568.72,0.00038997,4]
[321050479,1711825838366,-500.0,0.00038997,4]
[321050480,1711825838375,-500.0,0.00038997,4]
[321050481,1711825838384,-338.51696817,0.00038997,4]
[321050482,1711825838396,-161.48303183,0.00038997,4]
[321050483,1711825838406,-639.81,0.00038997,4]
[321050484,1711825838415,-1777.02,0.00038997,4]